fUST/lending_fUST_20250804
["ID","MTS","AMOUNT","RATE_DAILY","PERIOD"]
[377283473,1754319038649,-500.0,0.0003082,2]
[377283475,1754319038658,-500.0,0.0003082,2]
[377283477,1754319038668,-11367.34410172,0.00030821,2]
[377283479,1754319038681,-11979.00527922,0.00030821,2]
[377283482,1754319038693,-2123.83212,0.00030821,2]
[377283612,1754319039903,-500.0,0.0003082,2]
[377283614,1754319039912,-500.0,0.0003082,2]
[377283616,1754319039922,-13621.25939845,0.00030821,2]
[377283618,1754319039932,-2712.02557338,0.000309,23]
[377283620,1754319039941,-1152.16105225,0.000309,2]
[377283622,1754319039951,-702.47,0.00030909,30]
[377283624,1754319039960,-151.0,0.00031111,2]
[377283626,1754319039970,-2712.0255733,0.0003121,24]
[377283628,1754319039979,-702.47,0.00031295,30]
[377283630,1754319039989,-206.1210399,0.000313,2]
[377283632,1754319039999,-764.51846383,0.00031399,2]
[377283633,1754319040012,-160.0,0.0003146,2]
[377283635,1754319040022,-482.73,0.00031489,10]
[377283637,1754319040031,-402.28,0.00031489,10]
[377283639,1754319040041,-335.23,0.00031489,10]
[377283641,1754319040051,-2206.77991052,0.0003149,2]
[377283644,1754319040062,-534.84258503,0.00031498,2]
[377283646,1754319040071,-500.0,0.00031499,2]
[377283647,1754319040080,-1160.40330612,0.000315,2]
[377283649,1754319040090,-340.18055062,0.000315,5]
[377283651,1754319040099,-2712.0255733,0.00031521,25]
[377283653,1754319040110,-13584.9759667,0.0003154,2]
[377283655,1754319040119,-2105.41764887,0.00031543,2]
[377283657,1754319040128,-1600.0,0.00031548,3]
[377283659,1754319040137,-6792.48798334,0.00031552,2]
[377283661,1754319040147,-2056.55273829,0.00031552,2]
[377283664,1754319040158,-2357.00708275,0.00031552,2]
[377283666,1754319040169,-36289.58965625,0.00031562,2]
[377283668,1754319040180,-1045.36510411,0.00031562,2]
[377283671,1754319040200,-14891.09803384,0.00031562,2]
[377283690,1754319040373,-2008.19839004,0.00031562,2]
[377283693,1754319040384,-1421.1804627,0.00031562,2]
[377283743,1754319042967,-500.0,0.0003082,2]
[377283744,1754319042977,-277.17506577,0.00031562,2]
[377283745,1754319043009,-462.75695184,0.00031562,2]
[377283746,1754319043050,-637.56813429,0.00031562,2]
[377283747,1754319043064,-431.15,0.00031562,2]
[377283748,1754319043087,-17754.86746716,0.00031562,2]
[377283749,1754319043097,-500.0,0.00031587,5]
[377283750,1754319043107,-500.0,0.000316,5]
[377283751,1754319043117,-507.42146889,0.000316,5]
[377283752,1754319043127,-500.0,0.000316,5]
[377283753,1754319043136,-500.33812626,0.000316,5]
[377283755,1754319043146,-152.57967547,0.000316,5]
[377283756,1754319043155,-323.40389411,0.000316,5]
[377283758,1754319043164,-1250.71137202,0.0003161,2]
[377283759,1754319043174,-500.0,0.00031773,2]
[377283760,1754319043183,-1160.40330609,0.00031792,2]
[377283761,1754319043192,-2712.0255733,0.00031831,25]
[377283762,1754319043202,-367.0830784,0.00031921,2]
[377283763,1754319043212,-18003.36652088,0.0003199,2]
[377283764,1754319043223,-484.85999914,0.00032,5]
[377283765,1754319043232,-500.0,0.00032047,2]
[377283766,1754319043242,-861.1878846,0.00032055,30]
[377283767,1754319043251,-1160.40330609,0.00032083,2]
[377283768,1754319043260,-6792.48798334,0.00032138,2]
[377283769,1754319043269,-2712.0255733,0.00032141,26]
[377283770,1754319043279,-1000.0,0.00032148,5]
[377283771,1754319043288,-5000.0,0.00032224,4]
[377283772,1754319043298,-1700.0,0.00032305,7]
[377283773,1754319043308,-150.5,0.0003233,120]
[377283774,1754319043317,-150.5,0.0003234,120]
[377283775,1754319043326,-2206.77991052,0.0003234,2]
[377283776,1754319043336,-150.5,0.0003235,120]
[377283777,1754319043346,-6792.48798334,0.0003235,2]
[377283778,1754319043356,-1160.40330609,0.00032375,2]
[377283779,1754319043365,-2712.0255733,0.00032452,26]
[377283780,1754319043375,-702.47,0.00032454,30]
[377283781,1754319043384,-5600.22921228,0.00032597,2]
[377283782,1754319043394,-153.0,0.00032603,30]
[377283783,1754319043403,-153.0,0.00032603,30]
[377283784,1754319043413,-1160.40330609,0.00032666,2]
[377283785,1754319043422,-6359.23461646,0.00032673,2]
[377283786,1754319043432,-448.031595,0.00032676,7]
[377283787,1754319043444,-448.031595,0.00032676,7]
[377283788,1754319043456,-731.774886,0.00032676,7]
[377283789,1754319043466,-731.774886,0.00032676,7]
[377283790,1754319043475,-172.801002,0.00032676,7]
[377283791,1754319043485,-172.801002,0.00032676,7]
[377283792,1754319043494,-1500.0,0.00032696,5]
[377283793,1754319043504,-151.0,0.000327,11]
[377283794,1754319043514,-2206.77991052,0.00032746,2]
[377283795,1754319043524,-47547.4158834,0.00032756,2]
[377283796,1754319043533,-2206.77991052,0.00032756,2]
[377283797,1754319043543,-151.0,0.00032756,2]
[377283798,1754319043552,-151.0,0.00032756,2]
[377283799,1754319043562,-151.0,0.00032756,2]
[377283800,1754319043572,-151.0,0.00032756,2]
[377283801,1754319043581,-2712.0255733,0.00032762,27]
[377283802,1754319043591,-47547.4158834,0.00032766,2]
[377283803,1754319043600,-17654.2392842,0.00032766,2]
[377283804,1754319043610,-500.59736898,0.00032773,5]
[377283805,1754319043619,-500.0,0.00032773,5]
[377283806,1754319043629,-150.0,0.00032773,5]
[377283807,1754319043638,-40936.6365693,0.00032776,2]
[377283808,1754319043650,-8865.14604208,0.00032776,2]
[377283810,1754319045919,-279.36,0.00032766,10]
[377283811,1754319045928,-2327.66394893,0.00032776,2]
[377283812,1754319045963,-317870.55343969,0.00032776,2]
[377283813,1754319045973,-160.0,0.00032823,2]
[377283814,1754319045982,-6792.48798334,0.00032856,2]
[377283815,1754319045991,-2206.77991052,0.00032864,2]
[377283816,1754319046001,-11033.8995526,0.00032866,2]
[377283817,1754319046010,-1000.0,0.00032872,2]
[377283818,1754319046019,-1000.0,0.00032872,2]
[377283819,1754319046028,-1000.0,0.00032872,2]
[377283820,1754319046037,-1000.0,0.00032872,2]
[377283821,1754319046046,-1000.0,0.00032872,2]
[377283822,1754319046056,-164.89369169,0.00032873,5]
[377283823,1754319046066,-485.29526641,0.00032873,5]
[377283824,1754319046076,-500.0,0.00032873,5]
[377283825,1754319046085,-164.24496533,0.00032873,5]
[377283826,1754319046095,-511.05840491,0.00032873,5]
[377283827,1754319046104,-150.0,0.00032873,5]
[377283828,1754319046113,-500.0,0.00032873,5]
[377283829,1754319046122,-500.0,0.00032873,5]
[377283830,1754319046131,-500.0,0.00032873,5]
[377283831,1754319046140,-437.32267485,0.00032873,5]
[377283832,1754319046149,-569.97181184,0.00032873,5]
[377283833,1754319046159,-504.58546499,0.00032873,5]
[377283834,1754319046168,-500.0,0.00032873,2]
[377283835,1754319046178,-611.52703329,0.00032873,5]
[377283836,1754319046187,-500.0,0.00032873,5]
[377283837,1754319046197,-500.0,0.00032873,5]
[377283838,1754319046206,-500.0,0.00032873,5]
[377283839,1754319046215,-500.0,0.00032873,5]
[377283840,1754319046225,-500.0,0.00032873,5]
[377283841,1754319046234,-500.0,0.00032873,5]
[377283842,1754319046243,-500.0,0.00032873,5]
[377283843,1754319046252,-1000.0,0.00032874,2]
[377283844,1754319046262,-1000.0,0.00032874,2]
[377283845,1754319046272,-1000.0,0.00032874,2]
[377283846,1754319046281,-1000.0,0.00032874,2]
[377283847,1754319046290,-1000.0,0.00032874,2]
[377283849,1754319046300,-1000.0,0.00032874,2]
[377283851,1754319046311,-448.031595,0.00032875,7]
[377283853,1754319046320,-448.031595,0.00032875,7]
[377283855,1754319046330,-731.774886,0.00032875,7]
[377283857,1754319046339,-731.774886,0.00032875,7]
[377283858,1754319046348,-172.801002,0.00032875,7]
[377283860,1754319046358,-172.801002,0.00032875,7]
[377283861,1754319046367,-1000.0,0.00032875,2]
[377283862,1754319046376,-1000.0,0.00032875,2]
[377283863,1754319046385,-1000.0,0.00032875,2]
[377283864,1754319046394,-1000.0,0.00032875,2]
[377283866,1754319046403,-1000.0,0.00032875,2]
[377283867,1754319046413,-1000.0,0.00032875,2]
[377283868,1754319046422,-1000.0,0.00032875,2]
[377283869,1754319046432,-151.0,0.00032876,7]
[377283870,1754319046441,-151.0,0.00032876,7]
[377283871,1754319046450,-151.0,0.00032876,7]
[377283872,1754319046459,-151.0,0.00032876,7]
[377283873,1754319046468,-448.031595,0.00032876,7]
[377283874,1754319046478,-448.031595,0.00032876,7]
[377283876,1754319046487,-460.0,0.00032876,2]
[377283877,1754319046496,-480.92,0.00032876,2]
[377283878,1754319046505,-471.49176584,0.00032876,2]
[377283879,1754319046514,-460.0,0.00032876,2]
[377283880,1754319046523,-7956.7,0.00032876,2]
[377283881,1754319046533,-460.0,0.00032876,2]
[377283882,1754319046542,-460.0,0.00032876,2]
[377283884,1754319046552,-151.0,0.00032876,7]
[377283886,1754319046562,-460.0,0.00032876,2]
[377283887,1754319046571,-460.0,0.00032876,2]
[377283888,1754319046580,-581.51,0.00032876,2]
[377283889,1754319046590,-460.0,0.00032876,2]
[377283890,1754319046600,-460.0,0.00032876,2]
[377283891,1754319046609,-522.7,0.00032876,2]
[377283892,1754319046618,-1997.33,0.00032876,2]
[377283893,1754319046627,-460.0,0.00032876,2]
[377283894,1754319046637,-460.0,0.00032876,2]
[377283895,1754319046646,-460.0,0.00032876,2]
[377283896,1754319046656,-460.0,0.00032876,2]
[377283897,1754319046665,-460.0,0.00032876,2]
[377283898,1754319046675,-391.18133342,0.00032876,2]
[377283899,1754319046684,-460.0,0.00032876,2]
[377283900,1754319046694,-460.0,0.00032876,2]
[377283901,1754319046703,-460.0,0.00032876,2]
[377283902,1754319046713,-731.774886,0.00032876,7]
[377283903,1754319046722,-460.0,0.00032876,2]
[377283904,1754319046732,-731.774886,0.00032876,7]
[377283905,1754319046742,-460.0,0.00032876,2]
[377283906,1754319046751,-460.0,0.00032876,2]
[377283907,1754319046762,-460.0,0.00032876,2]
[377283908,1754319046771,-460.0,0.00032876,2]
[377283909,1754319046782,-460.0,0.00032876,2]
[377283910,1754319046795,-556.33,0.00032876,2]
[377283911,1754319046804,-460.0,0.00032876,2]
[377283912,1754319046815,-460.0,0.00032876,2]
[377283913,1754319046824,-460.0,0.00032876,2]
[377283914,1754319046834,-460.0,0.00032876,2]
[377283915,1754319046843,-460.0,0.00032876,2]
[377283916,1754319046853,-597.85,0.00032876,2]
[377283917,1754319046862,-460.0,0.00032876,2]
[377283918,1754319046874,-1644.03,0.00032876,2]
[377283919,1754319046883,-460.0,0.00032876,2]
[377283920,1754319046893,-460.0,0.00032876,2]
[377283921,1754319046902,-460.0,0.00032876,2]
[377283922,1754319046912,-460.0,0.00032876,2]
[377283923,1754319046921,-460.0,0.00032876,2]
[377283924,1754319046930,-460.0,0.00032876,2]
[377283925,1754319046939,-460.0,0.00032876,2]
[377283926,1754319046949,-654.65,0.00032876,2]
[377283927,1754319046958,-460.0,0.00032876,2]
[377283928,1754319046967,-460.0,0.00032876,2]
[377283929,1754319046977,-480.95077601,0.00032876,2]
[377283930,1754319046986,-460.0,0.00032876,2]
[377283931,1754319046996,-460.0,0.00032876,2]
[377283932,1754319047006,-460.0,0.00032876,2]
[377283933,1754319047015,-460.0,0.00032876,2]
[377283934,1754319047024,-460.0,0.00032876,2]
[377283935,1754319047034,-1138.63,0.00032876,2]
[377283936,1754319047043,-460.0,0.00032876,2]
[377283937,1754319047052,-460.0,0.00032876,2]
[377283938,1754319047062,-460.0,0.00032876,2]
[377283939,1754319047072,-460.0,0.00032876,2]
[377283940,1754319047082,-460.0,0.00032876,2]
[377283941,1754319047091,-460.0,0.00032876,2]
[377283942,1754319047100,-460.0,0.00032876,2]
[377283943,1754319047110,-460.0,0.00032876,2]
[377283944,1754319047119,-633.48,0.00032876,2]
[377283945,1754319047128,-460.0,0.00032876,2]
[377283946,1754319047138,-381.75017712,0.00032876,2]
[377283947,1754319047148,-460.0,0.00032876,2]
[377283948,1754319047157,-460.0,0.00032876,2]
[377283949,1754319047166,-460.0,0.00032876,2]
[377283950,1754319047176,-460.0,0.00032876,2]
[377283951,1754319047185,-460.0,0.00032876,2]
[377283952,1754319047195,-460.0,0.00032876,2]
[377283953,1754319047204,-460.0,0.00032876,2]
[377283954,1754319047213,-460.0,0.00032876,2]
[377283955,1754319047222,-460.0,0.00032876,2]
[377283956,1754319047232,-252.80958878,0.00032876,2]
[377283957,1754319047241,-460.0,0.00032876,2]
[377283958,1754319047251,-460.0,0.00032876,2]
[377283959,1754319047260,-172.801002,0.00032876,7]
[377283960,1754319047268,-461.38096873,0.00032876,2]
[377283961,1754319047277,-172.801002,0.00032876,7]
[377283962,1754319047287,-460.0,0.00032876,2]
[377283963,1754319047296,-468.79108283,0.00032876,2]
[377283964,1754319047306,-460.0,0.00032876,2]
[377283965,1754319047318,-460.0,0.00032876,2]
[377283966,1754319047327,-460.0,0.00032876,2]
[377283967,1754319047337,-460.0,0.00032876,2]
[377283968,1754319047346,-460.0,0.00032876,2]
[377283969,1754319047356,-550.43,0.00032876,2]
[377283970,1754319047365,-460.0,0.00032876,2]
[377283971,1754319047374,-989.32,0.00032876,2]
[377283972,1754319047519,-460.0,0.00032876,2]
[377283973,1754319047529,-460.0,0.00032876,2]
[377283974,1754319047539,-460.0,0.00032876,2]
[377283975,1754319047550,-1021.41,0.00032876,2]
[377283976,1754319047561,-460.0,0.00032876,2]
[377283977,1754319047570,-460.0,0.00032876,2]
[377283978,1754319047579,-193.24002312,0.00032876,2]
[377283979,1754319047588,-500.0,0.00032876,2]
[377283980,1754319047598,-500.0,0.00032876,2]
[377283981,1754319047608,-460.0,0.00032876,2]
[377283982,1754319047618,-460.0,0.00032876,2]
[377283983,1754319047628,-460.0,0.00032876,2]
[377283984,1754319047637,-460.0,0.00032876,2]
[377283985,1754319047647,-460.0,0.00032876,2]
[377283986,1754319047656,-460.0,0.00032876,2]
[377283987,1754319047665,-460.0,0.00032876,2]
[377283988,1754319047675,-460.0,0.00032876,2]
[377283989,1754319047684,-480.21,0.00032876,2]
[377283990,1754319047693,-460.0,0.00032876,2]
[377283991,1754319047703,-460.0,0.00032876,2]
[377283992,1754319047712,-460.0,0.00032876,2]
[377283993,1754319047722,-460.0,0.00032876,2]
[377283994,1754319047732,-460.0,0.00032876,2]
[377283995,1754319047741,-3321.82,0.00032876,2]
[377283996,1754319047752,-460.0,0.00032876,2]
[377283997,1754319047761,-580.4173415,0.00032876,2]
[377283998,1754319047771,-460.0,0.00032876,2]
[377283999,1754319047780,-460.0,0.00032876,2]
[377284000,1754319047791,-460.0,0.00032876,2]
[377284001,1754319047802,-463.06420409,0.00032876,2]
[377284002,1754319047814,-460.0,0.00032876,2]
[377284003,1754319047823,-467.45,0.00032876,2]
[377284004,1754319047833,-460.0,0.00032876,2]
[377284005,1754319047842,-460.0,0.00032876,2]
[377284006,1754319047852,-460.0,0.00032876,2]
[377284007,1754319047861,-460.0,0.00032876,2]
[377284008,1754319047870,-310.78149978,0.00032876,2]
[377284009,1754319047880,-460.0,0.00032876,2]
[377284010,1754319047889,-460.0,0.00032876,2]
[377284011,1754319047898,-460.0,0.00032876,2]
[377284012,1754319047908,-638.96,0.00032876,2]
[377284013,1754319047917,-460.0,0.00032876,2]
[377284014,1754319047927,-460.0,0.00032876,2]
[377284015,1754319047936,-460.0,0.00032876,2]
[377284016,1754319047945,-460.0,0.00032876,2]
[377284017,1754319047954,-460.0,0.00032876,2]
[377284018,1754319047963,-460.0,0.00032876,2]
[377284019,1754319047972,-460.0,0.00032876,2]
[377284020,1754319047982,-460.0,0.00032876,2]
[377284021,1754319047991,-492.37,0.00032876,2]
[377284022,1754319048000,-460.0,0.00032876,2]
[377284023,1754319048009,-1491.44,0.00032876,2]
[377284024,1754319048019,-460.0,0.00032876,2]
[377284025,1754319048028,-460.0,0.00032876,2]
[377284026,1754319048037,-460.0,0.00032876,2]
[377284027,1754319048047,-450.17511065,0.00032876,2]
[377284028,1754319048056,-460.0,0.00032876,2]
[377284029,1754319048067,-460.0,0.00032876,2]
[377284030,1754319048076,-960.73,0.00032876,2]
[377284031,1754319048086,-460.0,0.00032876,2]
[377284032,1754319048096,-460.0,0.00032876,2]
[377284033,1754319048106,-460.0,0.00032876,2]
[377284034,1754319048115,-779.98,0.00032876,2]
[377284035,1754319048124,-7201.28,0.00032876,2]
[377284036,1754319048133,-460.0,0.00032876,2]
[377284037,1754319048143,-460.0,0.00032876,2]
[377284038,1754319048152,-498.56,0.00032876,2]
[377284039,1754319048162,-465.57429165,0.00032876,2]
[377284040,1754319048172,-632.49,0.00032876,2]
[377284041,1754319048181,-460.0,0.00032876,2]
[377284042,1754319048191,-8659.62,0.00032876,2]
[377284043,1754319048200,-924.77,0.00032876,2]
[377284044,1754319048209,-1249.25,0.00032876,2]
[377284045,1754319048219,-542.78,0.00032876,2]
[377284046,1754319048228,-460.0,0.00032876,2]
[377284047,1754319048239,-460.0,0.00032876,2]
[377284048,1754319048249,-460.0,0.00032876,2]
[377284049,1754319048259,-460.0,0.00032876,2]
[377284050,1754319048268,-927.45,0.00032876,2]
[377284051,1754319048279,-460.0,0.00032876,2]
[377284052,1754319048288,-460.0,0.00032876,2]
[377284053,1754319048299,-734.47,0.00032876,2]
[377284054,1754319048310,-323.53319545,0.00032876,2]
[377284055,1754319048319,-460.0,0.00032876,2]
[377284056,1754319048329,-460.0,0.00032876,2]
[377284057,1754319048338,-460.0,0.00032876,2]
[377284058,1754319048348,-460.0,0.00032876,2]
[377284059,1754319048357,-712.84,0.00032876,2]
[377284060,1754319048366,-530.78,0.00032876,2]
[377284061,1754319048376,-1149.71,0.00032876,2]
[377284062,1754319048386,-954.46,0.00032876,2]
[377284063,1754319048395,-460.0,0.00032876,2]
[377284064,1754319048405,-460.0,0.00032876,2]
[377284065,1754319048414,-460.0,0.00032876,2]
[377284066,1754319048424,-460.0,0.00032876,2]
[377284067,1754319048434,-460.0,0.00032876,2]
[377284068,1754319048443,-460.0,0.00032876,2]
[377284069,1754319048452,-867.73,0.00032876,2]
[377284070,1754319048461,-460.0,0.00032876,2]
[377284071,1754319048471,-460.0,0.00032876,2]
[377284072,1754319048480,-460.0,0.00032876,2]
[377284073,1754319048489,-460.0,0.00032876,2]
[377284074,1754319048499,-500.0,0.00032876,2]
[377284075,1754319048508,-869.37,0.00032876,2]
[377284076,1754319048517,-460.0,0.00032876,2]
[377284077,1754319048527,-460.0,0.00032876,2]
[377284078,1754319048535,-460.0,0.00032876,2]
[377284079,1754319048544,-4127.27,0.00032876,2]
[377284080,1754319048554,-378.34170494,0.00032876,2]
[377284081,1754319048564,-782.13,0.00032876,2]
[377284082,1754319048573,-705.98,0.00032876,2]
[377284083,1754319048583,-817.64,0.00032876,2]
[377284084,1754319048594,-460.0,0.00032876,2]
[377284085,1754319048603,-460.0,0.00032876,2]
[377284086,1754319048612,-1075.12,0.00032876,2]
[377284087,1754319048622,-460.0,0.00032876,2]
[377284088,1754319048632,-460.0,0.00032876,2]
[377284089,1754319048642,-4997.46,0.00032876,2]
[377284090,1754319048651,-1568.94,0.00032876,2]
[377284091,1754319048660,-933.51,0.00032876,2]
[377284092,1754319048670,-678.39,0.00032876,2]
[377284093,1754319048680,-468.59342855,0.00032876,2]
[377284094,1754319048689,-460.0,0.00032876,2]
[377284095,1754319048699,-460.0,0.00032876,2]
[377284096,1754319048709,-460.0,0.00032876,2]
[377284097,1754319048719,-460.0,0.00032876,2]
[377284098,1754319048728,-460.0,0.00032876,2]
[377284099,1754319048738,-477.37308389,0.00032876,2]
[377284100,1754319048748,-460.0,0.00032876,2]
[377284101,1754319048758,-460.0,0.00032876,2]
[377284102,1754319048767,-460.0,0.00032876,2]
[377284103,1754319048777,-460.0,0.00032876,2]
[377284104,1754319048789,-460.0,0.00032876,2]
[377284105,1754319048804,-3433.53,0.00032876,2]
[377284106,1754319048814,-460.0,0.00032876,2]
[377284107,1754319048824,-531.7,0.00032876,2]
[377284108,1754319048837,-460.0,0.00032876,2]
[377284109,1754319048846,-757.96,0.00032876,2]
[377284110,1754319048856,-460.0,0.00032876,2]
[377284111,1754319048866,-679.8,0.00032876,2]
[377284112,1754319048879,-460.0,0.00032876,2]
[377284113,1754319048888,-460.0,0.00032876,2]
[377284114,1754319048898,-2633.19,0.00032876,2]
[377284115,1754319048907,-460.0,0.00032876,2]
[377284116,1754319048917,-1153.4,0.00032876,2]
[377284117,1754319048926,-909.57,0.00032876,2]
[377284118,1754319048935,-460.0,0.00032876,2]
[377284119,1754319048944,-460.0,0.00032876,2]
[377284120,1754319048954,-460.0,0.00032876,2]
[377284121,1754319048963,-460.0,0.00032876,2]
[377284122,1754319048972,-460.0,0.00032876,2]
[377284123,1754319048982,-460.0,0.00032876,2]
[377284124,1754319048992,-460.0,0.00032876,2]
[377284125,1754319049002,-345.18712642,0.00032876,2]
[377284126,1754319049012,-1138.7,0.00032876,2]
[377284127,1754319049022,-474.4,0.00032876,2]
[377284128,1754319049031,-460.0,0.00032876,2]
[377284129,1754319049040,-1521.66,0.00032876,2]
[377284130,1754319049050,-460.0,0.00032876,2]
[377284131,1754319049060,-460.0,0.00032876,2]
[377284132,1754319049069,-460.0,0.00032876,2]
[377284133,1754319049079,-460.0,0.00032876,2]
[377284134,1754319049088,-587.26,0.00032876,2]
[377284135,1754319049097,-460.0,0.00032876,2]
[377284136,1754319049107,-482.53,0.00032876,2]
[377284137,1754319049117,-460.0,0.00032876,2]
[377284138,1754319049126,-948.84,0.00032876,2]
[377284139,1754319049135,-460.0,0.00032876,2]
[377284140,1754319049145,-10274.85,0.00032876,2]
[377284141,1754319049154,-460.0,0.00032876,2]
[377284142,1754319049163,-3193.56,0.00032876,2]
[377284143,1754319049172,-593.22,0.00032876,2]
[377284144,1754319049182,-745.61,0.00032876,2]
[377284145,1754319049191,-460.0,0.00032876,2]
[377284146,1754319049200,-740.23,0.00032876,2]
[377284147,1754319049210,-2509.65,0.00032876,2]
[377284148,1754319049220,-460.0,0.00032876,2]
[377284149,1754319049229,-3517.3,0.00032876,2]
[377284150,1754319049239,-550.94,0.00032876,2]
[377284151,1754319049248,-4398.19,0.00032876,120]
[377284152,1754319049257,-623.23,0.00032876,2]
[377284153,1754319049267,-1797.26,0.00032876,2]
[377284154,1754319049276,-535.01,0.00032876,2]
[377284155,1754319049285,-1133.86,0.00032876,2]
[377284156,1754319049295,-460.0,0.00032876,2]
[377284157,1754319049304,-460.0,0.00032876,2]
[377284158,1754319049315,-4564.97,0.00032876,2]
[377284159,1754319049324,-505.51,0.00032876,2]
[377284160,1754319049333,-460.0,0.00032876,2]
[377284161,1754319049343,-1469.8,0.00032876,2]
[377284162,1754319049353,-460.0,0.00032876,2]
[377284163,1754319049362,-460.0,0.00032876,2]
[377284164,1754319049371,-460.0,0.00032876,2]
[377284165,1754319049381,-460.0,0.00032876,2]
[377284166,1754319049390,-1029.89,0.00032876,2]
[377284167,1754319049400,-460.0,0.00032876,2]
[377284168,1754319049409,-500.0,0.00032877,5]
[377284169,1754319049419,-160.0,0.000329,2]
[377284170,1754319049428,-219.18425615,0.00032989,2]
[377284171,1754319049438,-2712.0255733,0.00033072,28]
[377284172,1754319049448,-1700.0,0.00033127,7]
[377284173,1754319049457,-151.0,0.0003315,14]
[377284174,1754319049466,-159.561668,0.0003315,14]
[377284175,1754319049476,-448.031595,0.0003315,14]
[377284176,1754319049485,-448.031595,0.0003315,14]
[377284177,1754319049495,-460.0,0.0003315,2]
[377284178,1754319049504,-480.92,0.0003315,2]
[377284179,1754319049514,-7956.7,0.0003315,2]
[377284180,1754319049523,-460.0,0.0003315,2]
[377284181,1754319049532,-460.0,0.0003315,2]
[377284182,1754319049542,-460.0,0.0003315,2]
[377284183,1754319049551,-581.51,0.0003315,2]
[377284184,1754319049560,-460.0,0.0003315,2]
[377284185,1754319049570,-460.0,0.0003315,2]
[377284186,1754319049580,-522.7,0.0003315,2]
[377284187,1754319049590,-1997.33,0.0003315,2]
[377284188,1754319049599,-460.0,0.0003315,2]
[377284189,1754319049609,-460.0,0.0003315,2]
[377284190,1754319049619,-460.0,0.0003315,2]
[377284191,1754319049628,-460.0,0.0003315,2]
[377284192,1754319049638,-460.0,0.0003315,2]
[377284193,1754319049647,-347.29742257,0.0003315,2]
[377284194,1754319049656,-731.774886,0.0003315,14]
[377284195,1754319049666,-731.774886,0.0003315,14]
[377284196,1754319049675,-460.0,0.0003315,2]
[377284197,1754319049684,-460.0,0.0003315,2]
[377284198,1754319049694,-460.0,0.0003315,2]
[377284199,1754319049703,-460.0,0.0003315,2]
[377284200,1754319049713,-556.33,0.0003315,2]
[377284201,1754319049723,-460.0,0.0003315,2]
[377284202,1754319049732,-460.0,0.0003315,2]
[377284203,1754319049742,-460.0,0.0003315,2]
[377284204,1754319049752,-460.0,0.0003315,2]
[377284205,1754319049762,-597.85,0.0003315,2]
[377284206,1754319049771,-460.0,0.0003315,2]
[377284207,1754319049781,-1644.03,0.0003315,2]
[377284208,1754319049791,-460.0,0.0003315,2]
[377284209,1754319049801,-460.0,0.0003315,2]
[377284210,1754319049812,-460.0,0.0003315,2]
[377284211,1754319049822,-460.0,0.0003315,2]
[377284212,1754319049831,-654.65,0.0003315,2]
[377284213,1754319049840,-604.7956408,0.0003315,2]
[377284214,1754319049850,-161.27310143,0.0003315,2]
[377284215,1754319049860,-460.0,0.0003315,2]
[377284216,1754319049869,-460.0,0.0003315,2]
[377284217,1754319049879,-460.0,0.0003315,2]
[377284218,1754319049888,-460.0,0.0003315,2]